bitfinex-derivatives/quotes_BTCF0:USTF0_20251023
["timestamp","ask_amount","ask_price","bid_price","bid_amount"]
[1761232955252,0.48543544,109630.0,109620.0,0.25963201]
[1761232955459,0.48543544,109630.0,109620.0,0.47963201]
[1761232955862,0.39424894,109630.0,109620.0,0.47963201]
[1761232956249,0.0108,109630.0,109620.0,0.80563201]
[1761232956450,0.05975402,109660.0,109650.0,0.04522]
[1761232956649,0.44256292,109670.0,109660.0,0.1491916]
[1761232956853,0.39424894,109670.0,109660.0,0.3291916]
[1761232957059,0.39424894,109670.0,109660.0,0.1491916]
[1761232957259,0.0489,109670.0,109660.0,0.3191916]
[1761232957563,0.0489,109670.0,109660.0,0.6451516]
[1761232957954,0.39424894,109670.0,109660.0,0.6451516]
[1761232958458,0.37172894,109670.0,109660.0,0.6451516]
[1761232958645,0.39424894,109670.0,109660.0,0.6451516]
[1761232959250,0.0489,109670.0,109660.0,0.6451516]
[1761232959453,0.35014894,109670.0,109660.0,0.6451516]
[1761232959656,0.37372894,109670.0,109660.0,0.6451516]
[1761232959855,0.46488224,109670.0,109660.0,0.6451516]
[1761232960055,0.48740224,109670.0,109660.0,0.6451516]
[1761232960256,0.39624894,109670.0,109660.0,0.6451516]
[1761232960860,0.25674248,109670.0,109660.0,0.6451516]
[1761232961663,0.0509,109670.0,109660.0,0.6451516]
[1761232961860,0.25674248,109670.0,109660.0,0.6451516]
[1761232963763,0.21264248,109670.0,109660.0,0.6451516]
[1761232964062,0.25674248,109670.0,109660.0,0.6851516]
[1761232965153,0.23422248,109670.0,109660.0,0.6851516]
[1761232965354,0.21264248,109670.0,109660.0,0.5651516]
[1761232965565,0.34789578,109670.0,109660.0,0.7551516]
[1761232965764,0.34789578,109670.0,109660.0,0.5251516]
[1761232966159,0.34789578,109670.0,109660.0,0.7551516]
[1761232966458,0.67369578,109670.0,109660.0,0.1644116]
[1761232966657,0.67369578,109670.0,109660.0,0.1991916]
[1761232967664,0.67369578,109670.0,109660.0,0.1491916]
[1761232968270,0.58254248,109670.0,109660.0,0.4291916]
[1761232968460,0.67369578,109670.0,109660.0,0.4291916]
[1761232968769,0.34789578,109670.0,109660.0,0.4291916]
[1761232971268,0.02838,109670.0,109660.0,0.4291916]
[1761232971468,0.21264248,109670.0,109660.0,0.4291916]
[1761232972068,0.34789578,109670.0,109660.0,0.4291916]
[1761232974567,0.34789578,109670.0,109660.0,0.4163816]
[1761232974770,0.1354016,109660.0,109650.0,0.04378]
[1761232974968,0.34124408,109660.0,109650.0,0.36378]
[1761232975161,0.67103408,109660.0,109650.0,0.2449499]
[1761232975867,0.67103408,109660.0,109650.0,0.4449499]
[1761232976262,0.66692408,109660.0,109650.0,0.4449499]
[1761232976470,0.66692408,109660.0,109650.0,0.4349499]
[1761232976666,0.66692408,109660.0,109650.0,0.4049499]
[1761232977467,0.66892408,109660.0,109650.0,0.4049499]
[1761232977862,0.66892408,109660.0,109650.0,0.1349499]
[1761232978062,0.66892408,109660.0,109650.0,0.3949499]
[1761232978374,0.66892408,109660.0,109650.0,0.2349499]
[1761232978565,0.67303408,109660.0,109650.0,0.4149499]
[1761232978766,0.66892408,109660.0,109650.0,0.32378]
[1761232979158,0.66892408,109660.0,109650.0,0.14378]
[1761232979365,0.66892408,109660.0,109650.0,0.2449499]
[1761232979873,0.66892408,109660.0,109650.0,0.4149499]
[1761232980170,0.67303408,109660.0,109650.0,0.2249499]
[1761232980359,0.67303408,109660.0,109650.0,0.13378]
[1761232981062,0.1354099,109650.0,109640.0,0.1349582]
[1761232981268,0.54709486,109650.0,109640.0,0.04378]
[1761232981467,0.35389238,109650.0,109640.0,0.04378]
[1761232981659,0.35389238,109650.0,109640.0,0.3149582]
[1761232981865,0.34125238,109650.0,109640.0,0.3286682]
[1761232982473,0.29801238,109650.0,109640.0,0.3286682]
[1761232982671,0.001,109650.0,109640.0,0.6542682]
[1761232983064,0.20684248,109650.0,109640.0,0.6542682]
[1761232983366,0.29801238,109650.0,109640.0,0.6542682]
[1761232983560,0.34225238,109650.0,109640.0,0.7942682]
[1761232984881,0.22829248,109650.0,109640.0,0.3086682]
[1761232985175,0.20684248,109650.0,109640.0,0.3086682]
[1761232985379,0.20684248,109650.0,109640.0,0.4686682]
[1761232986066,0.001,109650.0,109640.0,0.4686682]
[1761232986268,0.001,109650.0,109640.0,0.50138793]
[1761232986473,0.001,109650.0,109640.0,0.55014894]
[1761232986672,0.001,109650.0,109640.0,0.95014894]
[1761232986972,0.001,109650.0,109640.0,0.91742921]
[1761232988078,0.22829248,109650.0,109640.0,0.51742921]
[1761232988881,0.20684248,109650.0,109640.0,0.51742921]
[1761232989084,0.001,109650.0,109640.0,0.8686682]
[1761232989471,0.001,109650.0,109640.0,0.9178163]
[1761232989672,0.001,109650.0,109640.0,0.5178163]
[1761232989883,0.25108248,109650.0,109640.0,0.5178163]
[1761232990180,0.001,109650.0,109640.0,0.55058286]
[1761232992983,0.25108248,109650.0,109640.0,0.55058286]
[1761232993588,0.34225238,109650.0,109640.0,0.4686682]
[1761232994478,0.35489238,109650.0,109640.0,0.1849582]
[1761232994683,0.1354182,109640.0,109630.0,0.50695726]
[1761232994985,0.34126068,109640.0,109630.0,0.8141907]
[1761232995283,0.34126068,109640.0,109630.0,0.4886707]
[1761232995478,0.1354266,109630.0,109620.0,0.09998184]
[1761232995679,0.1354349,109620.0,109610.0,0.23060046]
[1761232995875,0.34127738,109620.0,109610.0,0.4786858]
[1761232996284,0.34127738,109620.0,109610.0,0.08215367]
[1761232996585,0.34127738,109620.0,109610.0,0.1349832]
[1761232997578,0.34127738,109620.0,109610.0,0.14574481]
[1761232997778,0.34127738,109620.0,109610.0,0.1349832]
[1761232999081,0.34127738,109620.0,109610.0,0.3149832]
[1761232999281,0.25008248,109620.0,109610.0,0.3149832]
[1761232999478,0.34127308,109630.0,109620.0,0.1049049]
[1761232999678,0.66679308,109630.0,109620.0,0.4386849]
[1761232999884,0.57560248,109630.0,109620.0,0.4386849]
[1761233000086,0.66678898,109630.0,109620.0,0.1486849]
[1761233000591,0.66778898,109630.0,109620.0,0.4286849]
[1761233001393,0.64499898,109630.0,109620.0,0.4286849]
[1761233001587,0.66778898,109630.0,109620.0,0.2486849]
[1761233001785,0.66778898,109630.0,109620.0,0.4686849]
[1761233002186,0.57660248,109630.0,109620.0,0.4686849]
[1761233002385,0.57660248,109630.0,109620.0,0.2586849]
[1761233002588,0.57660248,109630.0,109620.0,0.1486849]
[1761233002895,0.66778898,109630.0,109620.0,0.4086849]
[1761233003487,0.53236248,109630.0,109620.0,0.4086849]
[1761233003795,0.57671248,109630.0,109620.0,0.4086849]
[1761233003993,0.37087,109630.0,109620.0,0.4086849]
[1761233004189,0.57671248,109630.0,109620.0,0.4086849]
[1761233004391,0.001,109630.0,109620.0,0.4086849]
[1761233004591,0.001,109630.0,109620.0,0.8086849]
[1761233004781,0.001,109630.0,109620.0,0.84145146]
[1761233004988,0.55406248,109660.0,109650.0,0.1358899]
[1761233005188,0.55406248,109660.0,109650.0,0.3158899]
[1761233005690,0.34822,109660.0,109650.0,0.3158899]
[1761233005988,0.57571248,109660.0,109650.0,0.3158899]
[1761233006393,0.20584248,109660.0,109650.0,0.3158899]
[1761233006696,0.34579578,109670.0,109660.0,0.1493016]
[1761233006892,0.34579578,109670.0,109650.0,0.1355741]
[1761233007195,0.24984248,109660.0,109650.0,0.4255741]
[1761233007393,0.25184248,109660.0,109650.0,0.33441]
[1761233007587,0.1351699,109650.0,109640.0,0.1274534]
[1761233007785,0.0911782,109640.0,109630.0,0.4398027]
[1761233007988,0.54686316,109640.0,109630.0,0.4610727]
[1761233008293,0.34102068,109640.0,109630.0,0.7610727]
[1761233008488,0.24984248,109640.0,109630.0,0.7610727]
[1761233008701,0.1351703,109650.0,109640.0,0.1493182]
[1761233008892,0.34101238,109650.0,109640.0,0.4693182]
[1761233009092,0.34101238,109650.0,109640.0,0.1493182]
[1761233010188,0.34101238,109650.0,109640.0,0.1355882]
[1761233010386,0.22852248,109650.0,109640.0,0.3293182]
[1761233010790,0.34101238,109650.0,109640.0,0.3293182]
[1761233010993,0.24984248,109650.0,109640.0,0.3293182]
[1761233011195,0.34101238,109650.0,109640.0,0.3293182]
[1761233011498,0.34101238,109650.0,109640.0,0.0911782]
[1761233012193,0.4292818,109660.0,109650.0,0.1355799]
[1761233012194,0.66648428,109660.0,109650.0,0.1355799]
[1761233012401,0.34100408,109660.0,109650.0,0.1355799]
[1761233012594,0.66644408,109660.0,109650.0,0.1355799]
[1761233013203,0.4606016,109660.0,109650.0,0.1355799]
[1761233013393,0.66644408,109660.0,109650.0,0.1855799]
[1761233013797,0.66644408,109660.0,109650.0,0.2355799]
[1761233014402,0.66644408,109660.0,109650.0,0.1355799]
[1761233014702,0.68108408,109660.0,109650.0,0.0911699]
[1761233014996,0.68108408,109660.0,109650.0,0.1143099]
[1761233015202,0.68108408,109660.0,109650.0,0.3055799]
[1761233015402,0.66844408,109660.0,109650.0,0.3055799]
[1761233016097,0.66844408,109660.0,109650.0,0.1355799]
[1761233016299,0.68108408,109660.0,109650.0,0.1355799]
[1761233017699,0.68108408,109660.0,109650.0,0.14560997]
[1761233018204,0.68108408,109660.0,109650.0,0.12433997]
[1761233018605,0.68108408,109660.0,109650.0,0.14560997]
[1761233018809,0.68108408,109660.0,109650.0,0.10119997]
[1761233018999,0.68108408,109660.0,109650.0,0.12433997]
[1761233019197,0.68108408,109660.0,109650.0,0.14560997]
[1761233019504,0.68108408,109660.0,109650.0,0.45560997]
[1761233019505,0.66844408,109660.0,109650.0,0.45560997]
[1761233020001,0.57728248,109660.0,109650.0,0.45560997]
[1761233020306,0.002,109660.0,109650.0,0.45560997]
[1761233020505,0.23052248,109660.0,109650.0,0.45560997]
[1761233020802,0.25184248,109660.0,109650.0,0.45560997]
[1761233021610,0.26448248,109660.0,109650.0,0.14560997]
[1761233022105,0.26448248,109660.0,109650.0,0.12433997]
[1761233022309,0.35564408,109660.0,109650.0,0.14560997]
[1761233022804,0.49493629,109660.0,109650.0,0.14560997]
[1761233022998,0.49493629,109660.0,109650.0,0.33560997]
[1761233023200,0.49493629,109660.0,109650.0,0.10119997]
[1761233023412,0.49493629,109660.0,109650.0,0.14560997]
[1761233023602,0.48229629,109660.0,109650.0,0.33560997]
[1761233023907,0.1498016,109660.0,109650.0,0.01003007]
[1761233024210,0.49493629,109660.0,109650.0,0.04441]
[1761233024397,0.49493629,109660.0,109650.0,0.44558]
[1761233024602,0.48229629,109660.0,109650.0,0.44558]
[1761233025594,0.48229629,109660.0,109650.0,0.13558]
[1761233025799,0.49493629,109660.0,109650.0,0.13558]
[1761233026109,0.046,109660.0,109650.0,0.46556452]
[1761233026609,0.39113469,109660.0,109650.0,0.46556452]
[1761233026806,0.002,109660.0,109650.0,0.46556452]
[1761233027013,0.002,109660.0,109650.0,0.79088452]
[1761233028303,0.0048,109670.0,109660.0,0.1048916]
[1761233028509,0.06843312,109690.0,109680.0,0.149285]
[1761233028704,0.38913469,109690.0,109680.0,0.489285]
[1761233028911,0.48027139,109690.0,109670.0,0.4608785]
[1761233029108,0.38913469,109680.0,109670.0,0.7408785]
[1761233029407,0.40201469,109680.0,109670.0,0.1142933]
[1761233029604,0.40201469,109680.0,109670.0,0.1355633]
[1761233029605,0.38913469,109680.0,109670.0,0.1355633]
[1761233029804,0.38913469,109680.0,109670.0,0.3455633]
[1761233030004,0.044,109680.0,109670.0,0.3455633]
[1761233030205,0.38913469,109680.0,109670.0,0.3455633]
[1761233030410,0.39213469,109680.0,109670.0,0.3455633]
[1761233030612,0.047,109680.0,109670.0,0.3455633]
[1761233031112,0.02568,109680.0,109670.0,0.3455633]
[1761233031814,0.003,109680.0,109670.0,0.3455633]
[1761233032605,0.39213469,109680.0,109670.0,0.3455633]
[1761233035005,0.047,109680.0,109670.0,0.3455633]
[1761233037222,0.003,109680.0,109670.0,0.3455633]
[1761233037421,0.04737,109680.0,109670.0,0.3455633]
[1761233037821,0.003,109680.0,109670.0,0.3455633]
[1761233038427,0.003,109680.0,109670.0,0.3587433]
[1761233039121,0.38950469,109690.0,109680.0,0.147865]
[1761233039315,0.04437,109690.0,109680.0,0.437865]
[1761233039721,0.04437,109690.0,109680.0,0.147865]
[1761233039918,0.04437,109690.0,109680.0,0.457865]
[1761233040218,0.48064139,109690.0,109680.0,0.457865]
[1761233040521,0.48064139,109690.0,109680.0,0.437865]
[1761233040720,0.48488139,109690.0,109680.0,0.147865]
[1761233041017,0.48588139,109690.0,109680.0,0.147865]
[1761233041319,0.135515,109680.0,109670.0,0.147867]
[1761233041510,0.38950469,109680.0,109670.0,0.397867]
[1761233041715,0.38950469,109680.0,109670.0,0.147867]
[1761233041921,0.38950469,109680.0,109670.0,0.237867]
[1761233042224,0.04437,109680.0,109670.0,0.237867]
[1761233042421,0.04437,109680.0,109670.0,0.477867]
[1761233043427,0.39050469,109690.0,109680.0,0.147865]
[1761233043624,0.48064139,109690.0,109680.0,0.477865]
[1761233044921,0.38950469,109690.0,109680.0,0.477865]
[1761233045317,0.48064139,109690.0,109680.0,0.477865]
[1761233046322,0.48164139,109690.0,109680.0,0.477865]
[1761233046522,0.39050469,109690.0,109680.0,0.477865]
[1761233046727,0.48164139,109690.0,109680.0,0.477865]
[1761233047028,0.04537,109690.0,109680.0,0.477865]
[1761233048221,0.001,109690.0,109680.0,0.802985]
[1761233048522,0.11556262,109700.0,109690.0,0.0911367]
[1761233048723,0.50506731,109700.0,109690.0,0.1478567]
[1761233048925,0.48063419,109700.0,109690.0,0.4878567]
[1761233049426,0.50506731,109700.0,109690.0,0.4878567]
[1761233049617,0.48063419,109700.0,109690.0,0.4878567]
[1761233049822,0.48163419,109700.0,109690.0,0.4878567]
[1761233050024,0.39050469,109700.0,109690.0,0.4878567]
[1761233050322,0.1364984,109700.0,109690.0,0.4878567]
[1761233050622,0.1364984,109700.0,109690.0,0.1478567]
[1761233050929,0.51894621,109700.0,109690.0,0.04354]
[1761233051130,0.50606621,109700.0,109690.0,0.1478567]
[1761233051431,0.51894621,109700.0,109690.0,0.1346767]
[1761233051831,0.51794621,109700.0,109690.0,0.1128667]
[1761233052034,0.51894621,109700.0,109690.0,0.0911367]
[1761233052422,0.51894621,109700.0,109690.0,0.1346767]
[1761233052632,0.51794621,109700.0,109690.0,0.1346767]
[1761233052931,0.51894621,109700.0,109690.0,0.1346767]
[1761233053526,0.50606621,109700.0,109690.0,0.1478567]
[1761233053832,0.06980312,109700.0,109690.0,0.3078567]
[1761233054032,0.16093152,109700.0,109690.0,0.3078567]
[1761233054434,0.16093152,109700.0,109690.0,0.4678567]
[1761233055029,0.001,109700.0,109690.0,0.4678567]
[1761233055730,0.1364984,109700.0,109690.0,0.4478567]
[1761233055935,0.48163309,109700.0,109690.0,0.4478567]
[1761233056121,0.001,109700.0,109690.0,0.4478567]
[1761233056738,0.86764137,109710.0,109700.0,0.1346684]
[1761233056937,0.86764137,109710.0,109700.0,0.46477902]
[1761233057235,0.83498141,109710.0,109700.0,0.46477902]
[1761233057536,0.86764137,109710.0,109700.0,0.46477902]
[1761233058134,0.86764137,109710.0,109700.0,0.14477902]
[1761233058734,0.86864137,109710.0,109700.0,0.14477902]
[1761233058924,0.52350668,109710.0,109700.0,0.14477902]
[1761233059129,0.86864137,109710.0,109700.0,0.30477902]
[1761233059330,0.86864137,109710.0,109700.0,0.1128584]
[1761233059538,0.52357735,109710.0,109700.0,0.2946684]
[1761233059738,0.77758844,109710.0,109700.0,0.4146684]
[1761233060041,0.86870844,109710.0,109700.0,0.4146684]
[1761233060342,0.45246844,109710.0,109700.0,0.4646684]
[1761233060735,0.10733375,109710.0,109700.0,0.4646684]
[1761233061038,0.45246844,109710.0,109700.0,0.3046684]
[1761233061440,0.45246844,109710.0,109700.0,0.3178484]
[1761233062341,0.41980848,109710.0,109700.0,0.32800258]
[1761233062638,0.07467379,109710.0,109700.0,0.32800258]
[1761233062842,0.03030379,109710.0,109700.0,0.32800258]
[1761233063034,0.0058,109710.0,109700.0,0.32800258]
[1761233063340,0.05039,109710.0,109700.0,0.24800258]
[1761233063538,0.39552469,109710.0,109700.0,0.15800258]
[1761233063747,0.43266848,109710.0,109700.0,0.14482258]
[1761233064842,0.75766848,109710.0,109700.0,0.02173]
[1761233065042,0.75766848,109710.0,109690.0,0.1491488]
[1761233065238,0.38972469,109700.0,109690.0,0.4391488]
[1761233065437,0.38972469,109700.0,109690.0,0.1491488]
[1761233065745,0.81422848,109700.0,109680.0,0.0911394]
[1761233065936,0.71338469,109690.0,109680.0,0.0911394]
[1761233066246,0.73788848,109690.0,109680.0,0.0911394]
[1761233066837,0.82902518,109690.0,109680.0,0.1352394]
[1761233067043,0.82902518,109690.0,109680.0,0.3252394]
[1761233067440,0.82902518,109690.0,109680.0,0.33526248]
[1761233067441,0.73788848,109690.0,109680.0,0.33526248]
[1761233067640,0.4593867,109690.0,109680.0,0.33526248]
[1761233068349,0.80452139,109690.0,109680.0,0.33526248]
[1761233069061,0.71338469,109690.0,109680.0,0.33526248]
[1761233069257,0.19158605,109700.0,109690.0,0.1352367]
[1761233069454,0.51654605,109700.0,109690.0,0.3252367]
[1761233069655,0.48388609,109700.0,109690.0,0.3252367]
[1761233069858,0.48388609,109700.0,109690.0,0.1352367]
[1761233070160,0.86168074,109700.0,109690.0,0.1352367]
[1761233070361,0.82902078,109700.0,109690.0,0.1352367]
[1761233070561,0.83002078,109700.0,109690.0,0.1352367]
[1761233071256,0.86268074,109700.0,109690.0,0.1352367]
[1761233071456,0.83002078,109700.0,109690.0,0.1352367]
[1761233072260,0.86268074,109700.0,109690.0,0.1352367]
[1761233072463,0.83002078,109700.0,109690.0,0.4552367]
[1761233073158,0.83002078,109700.0,109690.0,0.3641]
[1761233073363,0.87556074,109700.0,109690.0,0.3641]
[1761233073660,0.87556074,109700.0,109690.0,0.4552367]
[1761233074761,0.87556074,109700.0,109690.0,0.34144]
[1761233075155,0.87556074,109700.0,109690.0,0.32]
[1761233075356,0.84290078,109700.0,109690.0,0.4552367]
[1761233075667,0.84290078,109700.0,109690.0,0.1352367]
[1761233075856,0.87556074,109700.0,109690.0,0.1352367]
[1761233076258,0.86268074,109700.0,109690.0,0.1487467]
[1761233077169,0.83002078,109700.0,109690.0,0.1487467]
[1761233078470,0.48488609,109700.0,109690.0,0.1487467]
[1761233078769,0.48488609,109700.0,109690.0,0.3187467]
[1761233079160,0.04429,109700.0,109690.0,0.3187467]
[1761233079361,0.1354184,109700.0,109690.0,0.3187467]
[1761233079558,0.1354184,109700.0,109690.0,0.35151326]
[1761233079760,0.1354184,109700.0,109690.0,0.3187467]
[1761233082158,0.1354184,109700.0,109690.0,0.1487467]
[1761233082364,0.1354184,109700.0,109690.0,0.4887467]
[1761233082867,0.34113947,109700.0,109690.0,0.4487467]
[1761233083167,0.34113947,109700.0,109690.0,0.05761]
[1761233083371,0.34113947,109700.0,109690.0,0.4887467]
[1761233087273,0.34113947,109700.0,109690.0,0.1487467]
[1761233087771,0.34113947,109700.0,109690.0,0.05761]
[1761233088674,0.46460142,109700.0,109690.0,0.05761]
[1761233088875,0.48910521,109700.0,109690.0,0.05761]
[1761233089473,0.48910521,109700.0,109690.0,0.1487467]
[1761233093876,0.48910521,109700.0,109690.0,0.4287467]
[1761233094484,0.48910511,109700.0,109690.0,0.4287467]
[1761233094680,0.46460132,109700.0,109690.0,0.4287467]
[1761233095581,0.46460132,109700.0,109690.0,0.46151326]
[1761233098077,0.48910511,109700.0,109690.0,0.46151326]
[1761233098678,0.46460132,109700.0,109690.0,0.46151326]
[1761233098885,0.001,109700.0,109690.0,0.62610477]
[1761233099079,0.16559151,109700.0,109690.0,0.62610477]
[1761233099581,0.16559151,109700.0,109690.0,0.46151326]
[1761233099771,0.20906151,109700.0,109690.0,0.30151326]
[1761233099977,0.16559151,109700.0,109690.0,0.47151326]
[1761233100485,0.20906151,109700.0,109690.0,0.48151326]
[1761233100676,0.37365302,109700.0,109690.0,0.48151326]
[1761233101285,0.46478142,109700.0,109690.0,0.48151326]
[1761233101487,0.37365302,109700.0,109690.0,0.48151326]
[1761233101685,0.46478142,109700.0,109690.0,0.18151326]
[1761233101987,0.001,109700.0,109690.0,0.18151326]
[1761233102177,0.18597151,109700.0,109690.0,0.62610477]
[1761233102378,0.37365302,109700.0,109690.0,0.46151326]
[1761233103585,0.16559151,109700.0,109690.0,0.46151326]
[1761233103889,0.37365302,109700.0,109690.0,0.46151326]
[1761233105194,0.37265302,109700.0,109690.0,0.46151326]
[1761233105582,0.46378132,109700.0,109690.0,0.46151326]
[1761233105796,0.46378132,109700.0,109690.0,0.47151326]
[1761233106689,0.37265302,109700.0,109690.0,0.47151326]
[1761233106892,0.46378132,109700.0,109690.0,0.47151326]
[1761233107585,0.64125283,109700.0,109690.0,0.38037656]
[1761233107786,0.46478132,109700.0,109690.0,0.47151326]
[1761233108294,0.37365302,109700.0,109690.0,0.47151326]
[1761233108494,0.46478132,109700.0,109690.0,0.47151326]
[1761233110301,0.46478142,109700.0,109690.0,0.47151326]
[1761233110793,0.48936263,109700.0,109690.0,0.47151326]
[1761233111192,0.46478142,109700.0,109690.0,0.47151326]
[1761233112098,0.48936263,109700.0,109690.0,0.47151326]
[1761233113600,0.39823423,109700.0,109690.0,0.47151326]
[1761233113802,0.48936263,109700.0,109690.0,0.47151326]
[1761233115890,0.48936263,109700.0,109690.0,0.37037656]
[1761233116198,0.1473467,109690.0,109680.0,0.05589656]
[1761233116399,0.095385,109680.0,109670.0,0.14704756]
[1761233116596,0.65721449,109680.0,109670.0,0.50027756]
[1761233116902,0.65721449,109680.0,109670.0,0.52315729]
[1761233117095,0.48838298,109680.0,109670.0,0.49039073]
[1761233117597,0.48838298,109680.0,109670.0,0.49139073]
[1761233118397,0.37265302,109680.0,109670.0,0.49139073]
[1761233118591,0.46379802,109680.0,109670.0,0.49139073]
[1761233118997,0.69721302,109680.0,109670.0,0.49139073]
[1761233119192,0.78835802,109680.0,109670.0,0.49039073]
[1761233119397,0.78839802,109680.0,109670.0,0.49039073]
[1761233120505,0.78835802,109680.0,109670.0,0.49039073]
[1761233120703,0.78835802,109680.0,109670.0,0.27039073]
[1761233120903,0.78835802,109680.0,109670.0,0.50039073]
[1761233121101,0.79259802,109680.0,109670.0,0.28039073]
[1761233121407,0.79259802,109680.0,109670.0,0.47039073]
[1761233121408,0.78835802,109680.0,109670.0,0.47039073]
[1761233122103,0.78835802,109680.0,109670.0,0.16039073]
[1761233122305,0.79259802,109680.0,109670.0,0.27039073]
[1761233122807,0.78835802,109680.0,109670.0,0.27039073]
[1761233123205,0.46379802,109680.0,109670.0,0.27039073]
[1761233123403,0.78835802,109680.0,109670.0,0.27039073]
[1761233123601,0.46379802,109680.0,109670.0,0.27039073]
[1761233123906,0.79259802,109680.0,109670.0,0.44039073]
[1761233124106,0.46803802,109680.0,109670.0,0.44039073]
[1761233124308,0.79259802,109680.0,109670.0,0.44039073]
[1761233124609,0.79259802,109680.0,109670.0,0.47771073]
[1761233125109,0.78835802,109680.0,109670.0,0.16036073]
[1761233125409,0.78835802,109680.0,109670.0,0.49036073]
[1761233128008,0.69721302,109680.0,109670.0,0.49036073]
[1761233128214,0.23497647,109690.0,109680.0,0.147595]
[1761233128411,0.62608811,109690.0,109680.0,0.427595]
[1761233128615,0.53495151,109690.0,109680.0,0.427595]
[1761233129006,0.62608811,109690.0,109680.0,0.427595]
[1761233129208,0.53495151,109690.0,109680.0,0.427595]
[1761233129409,0.62608811,109690.0,109680.0,0.427595]
[1761233129800,0.62708811,109690.0,109680.0,0.427595]
[1761233130000,0.80441962,109690.0,109670.0,0.11399703]
[1761233130206,0.47036802,109680.0,109670.0,0.45696703]
[1761233130511,0.47036802,109680.0,109670.0,0.36581973]
[1761233130913,0.37922302,109680.0,109670.0,0.45697303]
[1761233131114,0.46612802,109680.0,109670.0,0.45697303]
[1761233131710,0.1037933,109670.0,109660.0,0.07573656]
[1761233131907,0.1369616,109660.0,109650.0,0.1468191]
[1761233132109,0.47902462,109660.0,109650.0,0.4368191]
[1761233132318,0.64361613,109660.0,109650.0,0.02195]
[1761233132626,0.1369699,109650.0,109640.0,0.147626]
[1761233132919,0.46615292,109650.0,109640.0,0.47771667]
[1761233133118,0.79067292,109650.0,109640.0,0.47771667]
[1761233134419,0.02312,109650.0,109640.0,0.47771667]
[1761233134624,0.30155901,109660.0,109650.0,0.1476199]
[1761233134817,0.62607901,109660.0,109650.0,0.4576199]
[1761233135018,0.62607901,109660.0,109650.0,0.1476199]
[1761233135218,0.21039151,109660.0,109650.0,0.4476199]
[1761233135421,0.18771151,109660.0,109650.0,0.4476199]
[1761233135921,0.0458,109670.0,109660.0,0.1476116]
[1761233136113,0.21039151,109670.0,109660.0,0.63220311]
[1761233136317,0.18771151,109670.0,109660.0,0.4676116]
[1761233136925,0.21039151,109670.0,109660.0,0.4676116]
[1761233137317,0.21039151,109680.0,109670.0,0.1476033]
[1761233137513,0.21039151,109680.0,109670.0,0.7521233]
[1761233137924,0.21039151,109680.0,109670.0,0.4276033]
[1761233138428,0.16459151,109680.0,109670.0,0.59219481]
[1761233138623,0.16459151,109680.0,109670.0,0.46036986]
[1761233141017,0.31440251,109700.0,109690.0,0.01348]
[1761233141219,0.46611402,109700.0,109690.0,0.4275867]
[1761233141416,0.79059402,109700.0,109690.0,0.4275867]
[1761233142126,0.0506,109710.0,109700.0,0.1475783]
[1761233142329,0.0506,109710.0,109700.0,0.4675783]
[1761233142520,0.19251151,109710.0,109700.0,0.7920583]
[1761233142721,0.02792,109710.0,109700.0,0.7920583]
[1761233143022,0.0506,109710.0,109700.0,0.7920583]
[1761233143216,0.0048,109710.0,109700.0,0.7920583]
[1761233143420,0.16149336,109730.0,109720.0,0.05645]
[1761233143618,0.21031135,109730.0,109720.0,0.4475617]
[1761233144720,0.0458,109730.0,109720.0,0.4475617]
[1761233145227,0.21181512,109750.0,109740.0,0.04297]
[1761233145419,0.52374615,109750.0,109740.0,0.3975451]
[1761233145618,0.43265595,109750.0,109740.0,0.3975451]
[1761233145930,0.0506,109750.0,109740.0,0.45734629]
[1761233146117,0.1416868,109750.0,109740.0,0.45734629]
[1761233146325,0.1416868,109750.0,109740.0,0.37625119]
[1761233146634,0.48627779,109750.0,109740.0,0.44734629]
[1761233146931,0.48727779,109750.0,109740.0,0.44734629]
[1761233147228,0.1426868,109750.0,109740.0,0.15734629]
[1761233147427,0.48727779,109750.0,109740.0,0.39734629]
[1761233147620,0.48727779,109750.0,109730.0,0.1045789]
[1761233147621,0.50015779,109750.0,109730.0,0.1045789]
[1761233147824,0.39039099,109740.0,109730.0,0.8019089]
[1761233148623,0.39039099,109740.0,109730.0,0.81188699]
[1761233149131,0.49422609,109740.0,109730.0,0.04297]
[1761233149330,0.1495434,109730.0,109720.0,0.0911115]
[1761233149525,0.1495434,109730.0,109720.0,0.02195]
[1761233149526,0.49413439,109730.0,109720.0,0.02195]
[1761233149727,0.05868,109710.0,109700.0,0.0911278]
[1761233150035,0.39039099,109710.0,109700.0,0.4775778]
[1761233150333,0.0458,109710.0,109700.0,0.4775778]
[1761233150724,0.0458,109710.0,109700.0,0.4575778]
[1761233150924,0.0458,109710.0,109700.0,0.4585778]
[1761233151129,0.1369201,109710.0,109700.0,0.46834261]
[1761233151431,0.1369201,109710.0,109700.0,0.46734261]
[1761233152132,0.49439109,109710.0,109700.0,0.06621481]
[1761233152340,0.49439109,109710.0,109700.0,0.14386321]
[1761233153331,0.49439109,109710.0,109700.0,0.38386321]
[1761233153539,0.49439109,109710.0,109700.0,0.14386321]
[1761233154138,0.49439109,109710.0,109700.0,0.00976481]
[1761233154337,0.49439109,109710.0,109690.0,0.472531]
[1761233154540,0.38689099,109700.0,109690.0,0.762398]
[1761233155629,0.34459099,109710.0,109690.0,0.762398]
[1761233155840,0.38689099,109710.0,109700.0,0.1477283]
[1761233156025,0.47801099,109710.0,109700.0,0.4777283]
[1761233156230,0.80229099,109710.0,109700.0,0.4777283]
[1761233157134,0.38689099,109710.0,109700.0,0.4777283]
[1761233157433,0.36658,109710.0,109700.0,0.4777283]
[1761233158039,0.71117099,109710.0,109700.0,0.4777283]
[1761233158639,0.36658,109710.0,109700.0,0.3877283]
[1761233158841,0.71117099,109710.0,109700.0,0.3877283]
[1761233159640,0.38689099,109710.0,109700.0,0.3877283]
[1761233160034,0.47801099,109710.0,109700.0,0.3877283]
[1761233160236,0.49089099,109710.0,109700.0,0.3877283]
[1761233160436,0.49089099,109710.0,109700.0,0.3747283]
[1761233161830,0.47801099,109710.0,109700.0,0.3877283]
[1761233164438,0.47801099,109710.0,109700.0,0.3524583]
[1761233164439,0.49089099,109710.0,109700.0,0.3524583]
[1761233164642,0.0911283,109700.0,109690.0,0.158079]
[1761233164836,0.47801929,109700.0,109690.0,0.438079]
[1761233165037,0.0423,109700.0,109690.0,0.438079]
[1761233165437,0.1334283,109700.0,109690.0,0.438079]
[1761233166144,0.1334283,109700.0,109690.0,0.439079]
[1761233167138,0.0423,109700.0,109690.0,0.439079]
[1761233167537,0.1334283,109700.0,109690.0,0.439079]
[1761233167940,0.0423,109700.0,109690.0,0.439079]
[1761233168134,0.13342,109710.0,109700.0,0.1254583]
[1761233168334,0.34532,109710.0,109700.0,0.4277283]
[1761233168540,0.02112,109710.0,109700.0,0.4277283]
[1761233168738,0.0423,109710.0,109700.0,0.4277283]
[1761233169143,0.02112,109720.0,109710.0,0.14772]